bitfinex/quotes_ETHUSD_20260209
["timestamp","ask_amount","ask_price","bid_price","bid_amount"]
[1770604269723,2.25733438,2078.3,2077.5,0.001]
[1770604271660,4.81139337,2078.5,2077.5,0.001]
[1770604271864,4.81139337,2078.5,2077.7,0.04586049]
[1770604273045,3.363,2078.8,2078.0,0.04586049]
[1770604273046,4.5656484,2078.8,2078.0,0.04586049]
[1770604273989,4.5656484,2078.8,2077.7,1.24910905]
[1770604273990,2.25733438,2078.7,2077.7,1.24910905]
[1770604274843,2.25733438,2078.7,2077.5,0.001]
[1770604275153,2.25733438,2078.7,2077.6,1.24916351]
[1770604275545,2.25733438,2078.7,2077.9,0.04586049]
[1770604275964,1.2027326,2078.6,2077.8,1.20318662]
[1770604276270,1.2027326,2078.6,2077.7,1.20321004]
[1770604276472,1.2027326,2078.6,2077.8,1.20317729]
[1770604276875,1.2027326,2078.6,2077.7,1.20320818]
[1770604277071,1.2027326,2078.6,2077.6,0.04586049]
[1770604277241,1.2027326,2078.6,2077.8,1.20318338]
[1770604277648,1.2027326,2078.6,2077.7,1.20321332]
[1770604278173,4.81093043,2078.7,2077.7,1.20325359]
[1770604278559,6.98654344,2078.7,2077.7,1.20325359]
[1770604278746,2.17561301,2078.6,2077.6,1.24913601]
[1770604278947,4.81093043,2078.7,2077.6,3.60263477]
[1770604279161,2.17561301,2078.6,2077.6,1.24913601]
[1770604279871,2.17561301,2078.6,2077.6,0.04586049]
[1770604280082,2.17561301,2078.4,2077.5,0.001]
[1770604282186,2.17561301,2078.2,2077.5,0.001]
[1770604283086,5.53761301,2078.1,2077.5,0.001]
[1770604283459,5.53761301,2078.1,2077.7,0.001]
[1770604284285,1.20307988,2078.0,2077.5,0.001]
[1770604284669,8.17431953,2078.1,2077.5,0.001]
[1770604284670,4.56503757,2078.1,2077.5,0.001]
[1770604286770,3.37865058,2078.1,2077.5,0.001]
[1770604286963,1.20303757,2078.1,2077.5,0.001]
[1770604289494,4.81204018,2078.2,2077.5,0.001]
[1770604290273,6.98765319,2078.2,2077.5,0.001]
[1770604290900,2.17561301,2078.1,2077.5,0.001]
[1770604291468,3.37869289,2078.0,2077.5,0.001]
[1770604291869,6.74169289,2078.0,2077.5,0.001]
[1770604293694,4.56607988,2078.0,2077.5,0.001]
[1770604294282,4.56612839,2078.0,2077.5,0.001]
[1770604295790,6.7417414,2078.0,2077.5,0.001]
[1770604296110,2.17561301,2077.9,2077.5,0.001]
[1770604296582,2.17561301,2077.9,2077.7,0.001]
[1770604297212,2.17561301,2077.9,2077.5,0.001]
[1770604298917,4.81278275,2077.9,2077.5,0.001]
[1770604306413,6.95232262,2077.9,2077.5,0.001]
[1770604306810,4.81278275,2077.9,2077.5,0.001]
[1770604310016,4.81278275,2077.9,2077.7,0.001]
[1770604310224,4.81278275,2077.9,2077.5,0.001]
[1770604310525,0.002,2077.8,2077.5,0.001]
[1770604312800,3.365,2077.8,2077.5,0.001]
[1770604314208,1.20325359,2077.7,2077.5,0.001]
[1770604314828,4.56820566,2077.8,2077.5,0.001]
[1770604315402,0.002,2078.0,2077.7,2.31387268]
[1770604315603,9.36229428,2078.0,2077.5,0.001]
[1770604315906,2.13953987,2077.9,2077.5,0.001]
[1770604316205,1.20325359,2077.7,2077.5,0.001]
[1770604316734,6.01767434,2077.6,2077.3,0.001]
[1770604317239,8.15721421,2077.6,2077.3,0.001]
[1770604317534,2.13953987,2077.4,2076.6,0.001]
[1770604317740,2.13953987,2077.2,2076.6,0.001]
[1770604318103,2.13953987,2077.0,2076.6,0.001]
[1770604318304,4.56671707,2076.9,2076.6,0.001]
[1770604318532,10.58339141,2076.9,2076.6,0.001]
[1770604318733,2.13953987,2076.7,2076.3,0.001]
[1770604319251,8.15521421,2076.6,2075.5,2.31387268]
[1770604319411,5.50253987,2076.5,2075.6,1.25029742]
[1770604319608,3.363,2076.4,2075.6,0.04586049]
[1770604319803,3.363,2076.4,2075.6,1.25032916]
[1770604320008,3.363,2076.4,2076.0,1.20422914]
[1770604320216,3.363,2076.4,2075.9,3.51913375]
[1770604320450,3.3430831,2077.2,2076.3,2.31387268]
[1770604320623,10.58221757,2077.2,2076.3,2.31387268]
[1770604320813,6.01567434,2077.1,2076.3,2.31387268]
[1770604321434,0.5,2076.9,2076.3,2.31387268]
[1770604322325,7.71939553,2076.9,2076.0,2.31387268]
[1770604322638,7.71939553,2076.9,2076.2,1.20408475]
[1770604322823,7.71939553,2076.9,2076.5,0.001]
[1770604323414,6.51567434,2076.9,2076.5,0.001]
[1770604323615,7.71943207,2076.9,2076.5,0.001]
[1770604323918,2.13953987,2076.8,2076.5,0.001]
[1770604324112,2.13953987,2076.8,2076.3,3.51892305]
[1770604324113,6.01467434,2076.8,2076.3,3.51892305]
[1770604324313,6.01467434,2076.8,2076.3,3.56478354]
[1770604325041,3.34300859,2077.4,2076.6,0.04586049]
[1770604325241,6.01467434,2077.3,2076.6,0.04586049]
[1770604325633,6.00479351,2077.3,2076.6,0.04586049]
[1770604325975,3.364,2077.5,2076.9,0.04586049]
[1770604326276,0.002,2077.7,2076.9,2.35973317]
[1770604326432,6.00479351,2077.6,2077.0,1.20365912]
[1770604326631,0.002,2077.7,2077.0,1.20365912]
[1770604326835,0.002,2077.7,2076.9,3.51757432]
[1770604327131,2.14153987,2077.7,2076.3,4.86311583]
[1770604327334,2.14153987,2077.7,2076.8,1.20372622]
[1770604327765,2.14153987,2077.7,2076.9,1.2037155]
[1770604328055,0.002,2077.7,2076.9,1.2037155]
[1770604328634,0.002,2077.7,2077.2,2.31387268]
[1770604328839,0.002,2077.7,2077.0,2.31387268]
[1770604329152,6.00479351,2077.6,2077.0,2.31387268]
[1770604329338,6.00479351,2077.6,2076.9,1.2037155]
[1770604329956,6.00479351,2077.6,2076.9,3.56344867]
[1770604331181,7.20811281,2077.6,2076.9,3.56344867]
[1770604333448,2.13953987,2077.5,2076.6,2.31387268]
[1770604333653,2.13953987,2077.5,2076.6,3.51773538]
[1770604333878,2.13953987,2077.5,2076.6,1.2038627]
[1770604334092,7.20811281,2077.6,2076.3,0.001]
[1770604334093,2.13953987,2077.3,2076.3,0.001]
[1770604334384,6.00479351,2077.2,2076.3,1.20503102]
[1770604334550,6.00479351,2077.2,2076.6,1.24969461]
[1770604335148,6.00479351,2077.2,2076.6,0.04586049]
[1770604335372,6.00479351,2077.2,2076.8,0.001]
[1770604335548,7.20837939,2077.2,2076.8,0.001]
[1770604337479,4.81394405,2077.3,2076.5,1.2049059]
[1770604337480,2.32530537,2077.1,2076.5,0.001]
[1770604337651,6.00379351,2077.1,2076.5,0.001]
[1770604338686,6.00379351,2077.1,2076.6,0.04586049]
[1770604339074,6.00379351,2077.1,2076.5,0.001]
[1770604339761,2.32530537,2076.9,2076.5,0.001]
[1770604339992,3.364,2076.9,2076.3,0.001]
[1770604340156,6.00279351,2076.8,2076.3,0.001]
[1770604341865,6.00279351,2076.8,2076.3,0.04686049]
[1770604342260,7.20658276,2076.8,2076.3,0.001]
[1770604342469,6.00279351,2076.8,2076.3,0.001]
[1770604343290,6.00279351,2076.8,2076.4,0.04586049]
[1770604343485,6.00279351,2076.8,2076.3,0.001]
[1770604343658,6.00279351,2076.8,2076.3,0.04686049]
[1770604343859,6.00279351,2076.8,2076.3,0.001]
[1770604344073,6.00279351,2076.8,2076.3,1.20506082]
[1770604345616,3.364,2076.9,2076.3,3.41213496]
[1770604345785,6.00279351,2076.8,2076.3,3.41213496]
[1770604347221,3.364,2076.9,2076.4,2.16121365]
[1770604348211,3.364,2076.9,2076.5,1.20494895]
[1770604348417,0.002,2076.7,2076.6,2.20707414]
[1770604348710,0.002,2076.9,2076.6,2.20707414]
[1770604348886,0.002,2076.9,2076.6,2.16121365]
[1770604349086,0.002,2076.9,2076.5,1.20494895]
[1770604349290,0.002,2076.9,2076.5,0.001]
[1770604350285,0.002,2076.9,2076.5,2.20807414]
[1770604351024,4.56945485,2077.4,2076.5,0.04686049]
[1770604351206,3.366,2077.4,2076.8,0.04586049]
[1770604351408,4.56943828,2077.4,2076.8,0.04586049]
[1770604351920,3.366,2077.4,2076.6,2.16121365]
[1770604352137,0.002,2077.4,2076.8,2.20707414]
[1770604352289,0.002,2077.4,2076.9,1.20371707]
[1770604355797,0.002,2077.4,2077.0,2.16121365]
[1770604356923,0.002,2077.4,2076.9,1.20371707]
[1770604357520,0.002,2077.4,2076.8,4.86085731]
[1770604357521,0.002,2077.4,2076.8,1.20373076]
[1770604357706,1.20542736,2077.4,2076.6,1.20389097]
[1770604358108,1.20542736,2077.4,2076.8,0.04586049]
[1770604358109,0.002,2077.4,2076.8,0.04586049]
[1770604358911,0.002,2077.4,2076.8,2.20707414]
[1770604359724,0.002,2077.4,2076.9,1.20371707]
[1770604360308,0.002,2077.4,2077.0,0.001]
[1770604360503,0.002,2077.2,2077.0,0.001]
[1770604360703,2.32730537,2077.2,2076.5,0.001]
[1770604360906,2.32730537,2077.2,2076.8,0.001]
[1770604361617,2.32730537,2077.2,2076.3,0.001]
[1770604361812,2.32530537,2077.0,2076.3,0.001]
[1770604362016,2.82530537,2077.0,2076.3,0.001]
[1770604364109,2.32530537,2076.8,2076.3,0.001]
[1770604364327,1.20371707,2076.9,2076.3,0.001]
[1770604364328,2.32530537,2076.6,2076.3,0.001]
[1770604365109,1.20371707,2076.9,2076.3,0.002]
[1770604365303,1.70366367,2077.0,2076.3,0.002]
[1770604365714,1.20366367,2077.0,2076.3,0.002]
[1770604365933,5.61033932,2077.2,2076.5,0.04586049]
[1770604366233,0.002,2077.4,2076.6,3.38132278]
[1770604366531,0.002,2077.4,2076.8,0.04586049]
[1770604367429,0.002,2077.4,2076.8,2.2232923]
[1770604368110,0.002,2077.4,2076.9,1.20371707]
[1770604371606,2.24633932,2077.4,2077.0,0.001]
[1770604371808,0.002,2077.4,2076.8,1.20376395]
[1770604372919,0.002,2077.4,2076.7,1.20478971]
[1770604373129,0.002,2077.4,2076.8,1.20375705]
[1770604373316,0.002,2077.4,2077.1,0.001]
[1770604373517,0.002,2077.2,2077.1,0.001]
[1770604374608,0.002,2077.2,2077.1,0.002]
[1770604374939,0.002,2077.2,2077.1,0.001]
[1770604380539,0.002,2077.4,2077.1,0.001]
[1770604381919,2.24633932,2077.4,2077.1,0.001]
[1770604382942,0.002,2077.4,2077.1,0.001]
[1770604384145,2.24633932,2077.4,2077.1,0.001]
[1770604384363,0.002,2077.4,2077.1,0.001]
[1770604386438,0.002,2077.2,2077.1,0.001]
[1770604398777,0.002,2077.2,2076.3,0.001]
[1770604398778,1.97079227,2077.2,2076.3,0.001]
[1770604399072,1.96879227,2077.0,2076.3,0.001]
[1770604399440,1.96879227,2076.8,2076.3,0.001]
[1770604400043,1.96879227,2076.8,2076.0,0.001]
[1770604400583,3.364,2076.7,2076.0,0.001]
[1770604401279,5.33279227,2076.7,2076.0,0.001]
[1770604402301,1.20389097,2076.6,2076.0,0.001]
[1770604403892,3.17268324,2076.6,2076.0,0.001]
[1770604408064,1.96879227,2076.5,2075.9,0.001]
[1770604408287,1.96879227,2076.5,2075.7,0.001]
[1770604409491,1.20394534,2076.6,2075.8,1.99211754]
[1770604409662,3.17273761,2076.6,2075.7,1.20539378]
[1770604409862,1.96879227,2076.5,2075.7,1.25125427]
[1770604410064,1.96879227,2077.0,2076.0,2.03797803]
[1770604410264,3.365,2076.9,2076.2,0.001]
[1770604410673,0.002,2076.6,2076.2,0.001]
[1770604411195,0.002,2076.8,2076.2,0.001]
[1770604411996,0.002,2076.8,2076.2,1.20512291]
[1770604414395,1.97079227,2076.8,2076.2,0.001]
[1770604416124,2.46879227,2076.6,2076.2,0.001]
[1770604416327,1.20394895,2076.5,2076.2,0.001]
[1770604416693,3.67272684,2076.6,2076.2,0.001]
[1770604420234,0.5,2076.6,2076.2,0.001]
[1770604420431,1.20580953,2076.8,2076.2,0.001]
[1770604420611,0.002,2076.8,2076.2,0.001]
[1770604422737,0.002,2076.8,2076.4,0.001]
[1770604423055,0.002,2076.6,2076.4,0.001]
[1770604424117,1.97079227,2076.6,2076.4,0.001]
[1770604424418,0.5,2076.5,2076.2,0.001]
[1770604424626,2.46879227,2076.5,2076.2,0.001]
[1770604424821,1.96879227,2076.3,2075.7,0.001]
[1770604425014,1.20400693,2076.4,2075.4,0.001]
[1770604425015,1.96879227,2076.1,2075.4,0.001]
[1770604425213,1.96879227,2076.1,2075.5,0.002]
[1770604425813,1.96879227,2076.1,2075.4,0.001]
[1770604426714,1.81625488,2075.7,2075.1,0.001]
[1770604426934,1.81625488,2075.5,2075.1,0.001]
[1770604427444,1.81625488,2075.5,2074.8,0.001]
[1770604427641,1.81625488,2075.5,2074.8,0.003]
[1770604427847,1.81625488,2075.3,2074.5,0.001]
[1770604428019,1.81625488,2075.1,2074.5,0.003]
[1770604428210,1.81625488,2074.9,2074.5,0.003]
[1770604428837,1.20490067,2074.9,2074.5,0.003]
[1770604429326,6.38609288,2075.0,2074.5,0.003]
[1770604430728,1.81625488,2074.9,2074.5,0.003]
[1770604430933,1.20493541,2074.8,2074.5,0.003]
[1770604431644,1.81625488,2075.8,2074.5,0.003]
[1770604431829,1.81625488,2075.6,2074.6,0.002]
[1770604432232,1.81625488,2075.6,2074.7,0.04586049]
[1770604432622,1.81625488,2075.6,2074.8,0.002]
[1770604432822,1.20452902,2075.5,2074.8,0.002]
[1770604433018,3.0207839,2075.5,2074.8,0.002]
[1770604434547,1.81625488,2075.5,2074.8,0.002]
[1770604434748,4.57045711,2075.7,2074.8,0.002]
[1770604435049,1.81625488,2075.6,2074.8,0.002]
[1770604435342,0.002,2075.3,2074.8,0.002]
[1770604435546,0.002,2075.3,2074.9,0.002]
[1770604435745,0.002,2075.5,2074.9,0.04586049]
[1770604436643,0.002,2075.5,2074.8,1.79825406]
[1770604437148,0.002,2075.5,2074.9,1.20487734]
[1770604437649,0.002,2075.5,2075.0,0.04586049]
[1770604437851,4.57118091,2076.1,2075.0,1.84411455]
[1770604438058,1.81625488,2076.0,2075.0,0.04586049]
[1770604439453,3.0204995,2076.0,2075.1,1.20476121]
[1770604440958,3.02050231,2076.0,2075.1,1.20476121]
[1770604442454,1.81625488,2075.7,2074.7,1.20596776]
[1770604442653,1.81625488,2075.7,2074.9,1.20487617]
[1770604442828,3.02050231,2076.0,2075.0,1.20480599]
[1770604443030,1.81625488,2075.9,2075.0,1.20480599]
[1770604443432,3.02058298,2075.9,2074.9,6.6177283]
[1770604443644,1.81625488,2075.8,2074.9,4.81947424]
[1770604443873,1.81625488,2075.8,2074.9,1.20487734]
[1770604444454,1.81625488,2075.8,2074.8,1.20489371]
[1770604444640,1.81625488,2075.8,2074.8,1.2507542]
[1770604445670,1.20441296,2075.7,2074.8,1.2507542]
[1770604446560,3.0206553,2075.8,2074.8,3.04900826]
[1770604447764,0.002,2075.6,2074.8,3.04900826]
[1770604447966,1.81825488,2075.6,2074.8,1.20489371]
[1770604448173,1.81825488,2075.6,2074.7,0.001]
[1770604448684,1.81625488,2075.4,2074.7,0.001]
[1770604448889,1.81625488,2075.2,2074.7,0.001]
[1770604449771,3.02101609,2075.1,2074.7,0.001]
[1770604450468,1.81625488,2075.0,2074.7,0.001]
[1770604453195,4.81904486,2075.2,2074.7,0.001]
[1770604453346,1.20647152,2075.6,2074.7,0.001]
[1770604453551,1.81625488,2075.5,2074.7,0.001]
[1770604454668,1.20647152,2075.6,2074.7,0.001]
[1770604455182,1.20458706,2075.4,2074.7,1.20599349]
[1770604455778,2.78994544,2075.5,2074.7,1.20599349]
[1770604460055,2.78994544,2075.5,2074.9,0.001]
[1770604461282,0.002,2075.6,2074.9,0.001]
[1770604461456,1.51853643,2075.5,2074.9,0.001]
[1770604462352,0.002,2075.6,2074.9,1.20587734]
[1770604462671,1.2064759,2075.6,2074.9,1.20587734]
[1770604463881,0.002,2075.6,2074.9,1.20587734]
[1770604464180,0.002,2075.6,2075.0,1.55329655]
[1770604464766,0.002,2075.6,2075.1,1.20476121]
[1770604465080,0.002,2075.6,2075.1,1.2506217]
[1770604465585,0.002,2075.6,2075.1,1.20476121]
[1770604467218,0.002,2076.6,2075.8,0.04586049]
[1770604467482,1.51853643,2076.5,2075.4,0.04586049]
[1770604467980,1.51853643,2076.5,2075.7,0.04586049]
[1770604468383,1.20590801,2076.6,2075.7,0.04586049]
[1770604468679,0.002,2076.6,2075.7,0.04586049]
[1770604468980,1.20589939,2076.6,2075.7,1.59915704]
[1770604469188,2.72254336,2076.4,2075.3,2.75794166]
[1770604469366,1.51853643,2076.4,2075.4,0.04586049]
[1770604470269,1.51853643,2076.4,2075.4,1.59915704]
[1770604471180,1.51853643,2076.4,2075.5,1.20452902]
[1770604471382,0.002,2076.6,2076.0,0.04586049]
[1770604471582,0.002,2076.6,2075.7,0.04586049]
[1770604472486,0.002,2076.6,2075.7,1.59915704]
[1770604473053,0.002,2076.4,2075.7,1.59915704]
[1770604473278,0.002,2076.4,2075.8,1.20435494]
[1770604473484,1.52053643,2076.4,2075.8,1.20435494]
[1770604473657,1.52053643,2076.4,2075.7,1.20437465]
[1770604474685,1.52053643,2076.4,2075.4,0.04586049]
[1770604474890,1.52053643,2076.4,2075.3,1.20462968]
[1770604475405,1.51853643,2076.2,2075.1,0.001]
[1770604476970,1.51853643,2076.2,2075.1,0.04686049]
[1770604477595,1.51853643,2076.2,2075.1,0.001]
[1770604477798,1.51853643,2076.0,2075.1,1.20574485]
[1770604478103,1.51853643,2075.9,2075.1,1.20574485]
[1770604479263,1.51853643,2075.9,2075.1,0.001]
[1770604479597,1.20435494,2075.8,2075.1,0.001]
[1770604479784,1.51853643,2075.7,2075.1,0.001]
[1770604481781,1.51853643,2075.5,2075.1,0.001]
[1770604484700,1.20458706,2075.4,2075.1,0.001]
[1770604484883,1.20458706,2075.4,2074.9,0.001]
[1770604484884,1.51853643,2075.2,2074.9,0.001]
[1770604485773,4.81009121,2075.3,2074.9,0.001]
[1770604485973,1.44309121,2075.2,2074.9,0.001]
[1770604486197,1.44309121,2075.2,2075.0,0.001]
[1770604486886,1.20476121,2075.1,2075.0,0.001]
[1770604487202,2.64785242,2075.1,2074.7,0.001]
[1770604493215,1.20474362,2075.2,2074.7,0.001]
[1770604493383,3.367,2075.3,2074.7,1.44251298]
[1770604493585,4.57162044,2075.4,2074.7,1.44251298]
[1770604494089,3.367,2075.4,2074.8,0.04586049]
[1770604497411,4.57158983,2075.4,2074.8,1.25075258]
[1770604497639,1.44309121,2075.3,2074.7,0.001]
[1770604499305,3.367,2075.4,2074.9,0.001]
[1770604499619,0.002,2075.1,2074.9,0.001]
[1770604505116,0.002,2075.3,2074.9,1.41704355]
[1770604505342,4.57139062,2075.8,2074.9,1.41704355]
[1770604506622,4.57139062,2075.8,2075.0,1.20481927]
[1770604506946,1.44309121,2075.7,2074.9,1.20583394]
[1770604509228,2.64753076,2075.7,2074.9,0.001]
[1770604511722,2.64753076,2075.7,2075.1,0.001]
[1770604512045,0.002,2075.6,2075.1,0.001]
[1770604517258,1.24860882,2075.6,2075.1,0.001]
[1770604519036,0.002,2075.6,2075.1,0.001]
[1770604519438,0.002,2075.6,2075.1,1.31406202]
[1770604521866,0.002,2075.6,2075.2,1.20470316]
[1770604522761,0.002,2075.6,2075.1,2.51878196]
[1770604522951,0.002,2075.6,2075.1,1.20575904]
[1770604523574,0.002,2075.6,2075.1,2.48841205]
[1770604524474,0.002,2075.6,2075.1,1.20575904]
[1770604526944,0.002,2075.6,2075.1,2.47072344]
[1770604528269,0.002,2075.6,2075.1,1.20575904]
[1770604528637,0.002,2075.6,2075.1,0.001]
[1770604531169,0.002,2075.6,2075.1,1.24300158]
[1770604531373,0.002,2075.8,2075.2,1.24200158]
[1770604531592,0.002,2075.8,2075.4,0.04586049]
[1770604532072,0.002,2075.8,2075.4,1.28222928]
[1770604532456,0.002,2075.8,2075.1,1.23736879]
[1770604532847,0.002,2075.8,2075.2,1.20470316]
[1770604533044,1.24860882,2075.8,2075.1,1.205715]
[1770604533251,1.24860882,2075.8,2075.1,1.20575685]
[1770604535064,1.24860882,2075.8,2075.1,0.001]
[1770604535382,0.002,2075.8,2075.1,1.22078051]
[1770604536086,0.002,2075.8,2075.3,0.001]
[1770604536256,0.002,2075.6,2075.3,0.001]
[1770604539863,1.24860882,2075.6,2075.3,0.001]
[1770604541989,1.24660882,2075.5,2075.3,0.001]
[1770604542385,0.002,2075.6,2075.3,0.001]
[1770604543198,0.002,2075.8,2075.3,0.001]
[1770604544385,0.002,2075.8,2075.3,1.20564511]
[1770604545607,1.23984111,2075.8,2075.3,0.001]
[1770604546467,0.002,2075.8,2075.3,0.001]
[1770604548585,0.002,2075.8,2075.3,1.20564511]
[1770604548771,0.002,2075.6,2075.3,1.20564511]
[1770604548970,0.002,2076.4,2075.6,1.14409498]
[1770604549172,1.23984111,2076.4,2075.6,1.14409498]
[1770604549489,0.002,2076.6,2075.9,1.14409498]
[1770604549985,0.002,2076.6,2076.1,0.04586049]
[1770604550692,0.002,2076.6,2076.2,1.20412291]
[1770604553994,0.002,2076.6,2076.2,2.32425857]
[1770604554366,4.57257299,2077.2,2076.5,1.16599615]
[1770604554367,0.002,2077.2,2076.5,1.16599615]
[1770604554578,1.23784111,2077.1,2076.2,2.31952001]
[1770604554900,1.23784111,2077.1,2076.2,4.57012291]
[1770604555198,1.23784111,2077.1,2076.3,1.1153971]
[1770604555399,0.002,2077.2,2076.3,1.1153971]
[1770604555602,1.23984111,2077.2,2076.2,5.68099047]
[1770604555903,1.23984111,2077.2,2076.3,1.11086756]
[1770604556495,1.23984111,2077.2,2076.4,0.04586049]
[1770604556665,0.002,2077.2,2076.4,1.15205405]
[1770604556993,0.002,2077.2,2076.7,0.04586049]
[1770604557168,0.002,2077.2,2076.8,1.20377503]
[1770604559195,1.23984111,2077.2,2076.6,1.20389097]
[1770604560599,1.23984111,2077.2,2076.5,1.20390774]
[1770604560902,1.23984111,2077.0,2076.5,1.20390774]
[1770604561079,1.20552065,2077.3,2076.5,2.38390276]
[1770604561080,0.002,2077.3,2076.5,2.38390276]
[1770604561282,0.002,2077.3,2076.6,1.17999502]
[1770604561613,0.002,2077.3,2076.7,0.04586049]
[1770604561907,0.002,2077.3,2076.7,1.22585551]
[1770604563798,0.002,2077.3,2076.8,1.20377503]
[1770604564010,0.002,2078.1,2077.5,1.17999502]
[1770604564297,2.44059051,2078.6,2077.6,1.17999502]
[1770604564476,2.44059051,2078.6,2077.7,0.04586049]
[1770604564872,0.003,2078.7,2077.7,1.22585551]
[1770604565202,0.003,2078.7,2078.0,0.04586049]
[1770604565807,0.003,2078.7,2078.1,1.20302199]
[1770604566005,0.003,2079.0,2078.3,0.04586049]
[1770604566181,0.003,2079.0,2078.1,2.38301701]
[1770604568510,0.003,2079.0,2078.3,0.04586049]
[1770604569099,0.003,2079.0,2078.2,1.17999502]
[1770604569100,0.003,2079.0,2078.1,4.56702199]
[1770604569321,0.003,2079.0,2078.2,1.17999502]
[1770604569610,0.003,2079.0,2078.3,0.04586049]
[1770604569813,0.003,2079.0,2078.2,1.17999502]
[1770604570019,1.24084111,2079.0,2078.1,1.20302199]
[1770604570187,1.24084111,2079.0,2077.9,1.20311085]
[1770604570393,1.24084111,2079.0,2077.6,1.22585551]
[1770604570720,1.24084111,2079.0,2077.8,1.20316725]
[1770604570936,1.24084111,2079.0,2077.9,0.04586049]
[1770604571295,1.24084111,2079.0,2077.8,1.20315658]
[1770604571617,1.24084111,2079.0,2077.6,1.24913514]
[1770604571832,1.23784111,2078.8,2077.4,4.56739345]
[1770604571998,1.23784111,2078.6,2077.1,4.81438441]
[1770604572719,1.23784111,2078.6,2077.3,1.22585551]
[1770604573093,1.23784111,2078.6,2078.2,0.001]
[1770604573293,1.23784111,2078.6,2077.1,1.20360117]
[1770604573622,1.23784111,2078.6,2077.6,0.04586049]
[1770604574416,2.44063158,2078.5,2078.0,0.001]
[1770604574593,1.20279047,2078.5,2078.0,0.001]
[1770604576305,1.12135574,2078.6,2078.0,0.001]
[1770604578208,1.20279047,2078.5,2078.0,0.001]
[1770604578404,1.21904841,2078.4,2078.0,0.001]
[1770604579111,1.21904841,2078.4,2077.2,4.88066152]
[1770604579423,1.21904841,2078.4,2077.3,1.20348469]
[1770604579608,1.21904841,2078.4,2077.2,4.88065118]
[1770604579810,1.21904841,2078.4,2077.3,1.20347479]
[1770604580222,4.81116189,2078.6,2077.7,1.20325359]
[1770604580425,4.81116189,2078.6,2077.9,0.04586049]
[1770604580733,1.2027326,2078.6,2077.9,0.04586049]
[1770604581856,3.363,2078.7,2077.9,1.17116848]
[1770604582004,1.20461817,2078.8,2077.9,1.12530799]
[1770604582200,1.20461817,2078.8,2077.7,4.88040125]
[1770604582201,0.002,2078.8,2078.4,1.20284834]
[1770604582635,0.005,2079.0,2078.6,0.04586049]
[1770604582831,0.005,2079.0,2078.4,1.20284834]
[1770604583038,0.005,2079.0,2078.3,1.24872528]
[1770604583209,0.005,2079.0,2078.3,2.37403327]
[1770604586734,3.366,2079.6,2078.7,1.12530799]
[1770604586952,0.003,2079.8,2079.3,1.12530799]
[1770604587238,1.21904841,2080.1,2079.2,1.24820099]
[1770604587404,1.21904841,2080.1,2079.3,1.20231492]
[1770604587609,1.21904841,2080.1,2079.2,0.04586049]
[1770604587933,1.21904841,2080.1,2079.0,2.32775584]
[1770604588246,1.52175241,2080.2,2079.2,0.04586049]
[1770604588652,1.21904841,2080.1,2079.2,0.04586049]
[1770604589015,2.42097148,2080.0,2078.9,0.04586049]
[1770604589214,1.21904841,2079.9,2078.9,0.04586049]
[1770604589414,1.21904841,2079.9,2078.7,3.362]
[1770604589728,2.42097148,2080.0,2078.9,0.04586049]
[1770604589929,2.42097148,2080.0,2078.9,1.24841702]
[1770604590413,2.42097148,2080.0,2078.9,0.04586049]
[1770604590609,1.21904841,2079.9,2078.9,0.04586049]
[1770604591214,2.42108706,2079.8,2078.9,0.04586049]
[1770604591828,1.20203865,2079.8,2078.9,1.17116848]
[1770604592033,1.20203865,2079.8,2079.2,0.04586049]
[1770604592231,1.21904841,2079.7,2078.6,0.04586049]
[1770604592410,1.21904841,2079.7,2078.6,1.24858959]
[1770604592610,1.21904841,2079.7,2078.6,1.24854903]
[1770604592926,1.21904841,2079.7,2078.6,0.04586049]
[1770604593128,1.21904841,2079.5,2078.3,1.24873661]
[1770604593514,1.21904841,2079.5,2078.1,0.001]
[1770604595248,1.21904841,2079.3,2078.1,0.001]
[1770604595456,1.21904841,2079.1,2078.1,0.001]
[1770604595661,3.361,2079.2,2078.2,1.17116848]
[1770604595848,1.21904841,2079.1,2078.2,0.04586049]
[1770604596940,1.21904841,2079.1,2078.1,0.001]
[1770604597143,1.20226988,2079.4,2078.6,0.04586049]
[1770604597663,1.20226988,2079.4,2078.1,14.81205211]
[1770604597664,1.21904841,2079.3,2078.1,0.001]
[1770604599350,1.21904841,2079.1,2078.1,0.001]
[1770604599661,1.21904841,2079.1,2078.2,0.04586049]
[1770604600042,1.21904841,2079.1,2078.1,0.001]
[1770604600261,0.002,2078.9,2078.1,0.001]
[1770604600442,1.22104841,2078.9,2078.1,0.001]
[1770604601344,1.20261689,2078.8,2078.1,0.001]
[1770604602336,2.4216653,2078.8,2078.1,0.001]
[1770604603543,1.21904841,2078.7,2078.1,0.001]
[1770604605360,1.2027326,2078.6,2078.1,0.001]
[1770604606158,2.32478276,2078.6,2078.1,0.001]
[1770604606371,1.12205016,2078.5,2078.1,0.001]
[1770604607363,1.20284834,2078.4,2078.1,0.001]
[1770604607568,2.3248985,2078.4,2078.1,0.001]
[1770604608234,2.3248985,2078.4,2077.9,0.001]
[1770604608436,1.12205016,2078.3,2077.9,0.001]
[1770604608639,5.6868985,2078.4,2077.9,0.001]
[1770604609672,4.56484834,2078.4,2077.9,0.001]
[1770604610351,5.6868985,2078.4,2077.9,0.001]
[1770604610647,4.56484834,2078.4,2077.9,0.001]
[1770604612768,4.56484834,2078.4,2078.1,0.001]
[1770604613847,5.6868985,2078.4,2078.1,0.001]
[1770604616666,4.56484834,2078.4,2078.1,0.001]
[1770604617234,3.362,2078.4,2078.1,0.001]
[1770604617938,4.56485321,2078.4,2078.1,0.001]
[1770604618653,4.56485329,2078.4,2078.1,0.001]
[1770604620279,3.362,2078.4,2078.1,0.001]
[1770604620481,4.5648586,2078.4,2078.1,0.001]